bitfinex/quotes_SOLUSD_20240809
["timestamp","ask_amount","ask_price","bid_price","bid_amount"]
[1723175297706,32.8601,159.24,159.2,45.0]
[1723175297909,6.2805,159.23,159.2,45.0]
[1723175298089,26.58,159.24,159.19,45.0]
[1723175298292,32.8598,159.24,159.19,6.2817]
[1723175298505,32.8598,159.24,159.2,45.0]
[1723175299717,26.58,159.24,159.2,45.0]
[1723175300401,26.58,159.24,159.21,6.281]
[1723175300721,26.58,159.26,159.22,45.0]
[1723175301033,32.8591,159.26,159.22,45.0]
[1723175301206,26.58,159.26,159.22,45.0]
[1723175301719,26.58,159.26,159.22,51.2805]
[1723175302506,26.58,159.26,159.17,6.2822]
[1723175302507,26.58,159.24,159.17,6.2822]
[1723175302699,26.58,159.22,159.17,6.2822]
[1723175303902,32.8606,159.22,159.17,6.2822]
[1723175304108,26.58,159.22,159.17,6.2822]
[1723175305008,6.2814,159.2,159.16,6.1043]
[1723175305323,26.58,159.18,159.15,15.7074]
[1723175305703,26.58,159.18,159.15,21.9907]
[1723175306107,32.8623,159.18,159.12,6.0613]
[1723175306312,26.58,159.18,159.13,6.2838]
[1723175307011,26.58,159.18,159.14,6.2835]
[1723175308301,26.58,159.18,159.13,6.2841]
[1723175308508,26.58,159.16,159.14,45.0]
[1723175309147,26.58,159.16,159.14,51.2836]
[1723175309310,26.58,159.16,159.15,6.2833]
[1723175309619,26.58,159.18,159.14,21.9925]
[1723175310216,26.58,159.18,159.15,51.2833]
[1723175310623,6.2815,159.2,159.15,51.2833]
[1723175310952,26.58,159.19,159.15,51.2833]
[1723175313048,26.58,159.21,159.17,15.7062]
[1723175313337,26.58,159.21,159.18,51.2821]
[1723175313514,26.58,159.21,159.18,45.0]
[1723175314143,26.58,159.21,159.18,51.282]
[1723175314715,26.58,159.21,159.18,45.0]
[1723175318946,26.58,159.21,159.14,22.5678]
[1723175318947,1.5703441,159.2,159.14,22.5678]
[1723175319114,26.58,159.21,159.15,45.0]
[1723175319439,32.861,159.21,159.15,45.0]
[1723175319643,26.58,159.21,159.16,6.2826]
[1723175319830,6.2806,159.22,159.12,6.2844]
[1723175319831,26.58,159.17,159.12,6.2844]
[1723175320042,1.57083855,159.16,159.12,6.2844]
[1723175320540,26.58,159.17,159.13,1.25670033]
[1723175320742,26.58,159.17,159.14,6.2837]
[1723175321046,26.58,159.17,159.13,6.284]
[1723175321919,32.8627,159.17,159.12,21.9957]
[1723175322123,26.58,159.17,159.13,6.2838]
[1723175323141,26.58,159.17,159.12,21.9957]
[1723175323349,26.58,159.17,159.13,45.0]
[1723175323736,26.58,159.17,159.13,51.2839]
[1723175324833,26.58,159.17,159.14,6.2837]
[1723175325242,26.58,159.17,159.15,45.0]
[1723175327038,32.8623,159.18,159.15,45.0]
[1723175327245,32.8623,159.18,159.14,45.0]
[1723175327747,26.58,159.18,159.14,45.0]
[1723175327952,26.58,159.18,159.15,6.283]
[1723175328158,26.58,159.18,159.15,6.2833]
[1723175328632,26.58,159.18,159.13,45.0]
[1723175328633,26.58,159.19,159.16,51.2829]
[1723175328837,26.58,159.19,159.16,45.0]
[1723175329648,26.58,159.19,159.16,51.2829]
[1723175329830,22.24919716,159.24,159.16,45.0]
[1723175329831,1.57043417,159.23,159.16,45.0]
[1723175330031,26.58,159.2,159.15,45.0]
[1723175330335,32.8614,159.2,159.15,51.2833]
[1723175331055,26.58,159.2,159.16,6.2829]
[1723175331349,26.58,159.2,159.17,45.0]
[1723175331537,26.58,159.2,159.17,51.2825]
[1723175331725,26.58,159.2,159.17,45.0]
[1723175333827,18.21,159.18,159.17,45.0]
[1723175335549,18.21,159.19,159.17,51.2825]
[1723175336731,16.1294,159.25,159.18,18.21]
[1723175336930,18.21,159.23,159.19,45.0]
[1723175338075,18.21,159.23,159.2,6.2813]
[1723175338262,18.21,159.23,159.21,45.0]
[1723175339735,6.2795,159.25,159.21,45.0]
[1723175339946,18.21,159.23,159.21,45.0]
[1723175340946,18.21,159.22,159.21,45.0]
[1723175341260,18.21,159.22,159.2,45.0]
[1723175342026,24.4911,159.21,159.17,15.7064]
[1723175342248,18.21,159.18,159.15,15.6371945]
[1723175342448,18.21,159.16,159.13,21.9935]
[1723175342648,18.21,159.15,159.13,15.7095]
[1723175342955,18.21,159.16,159.13,21.9935]
[1723175343149,18.21,159.16,159.14,6.2835]
[1723175343737,26.56,159.18,159.14,6.2835]
[1723175344056,32.8422,159.18,159.13,21.9936]
[1723175345057,26.56,159.18,159.14,6.2837]
[1723175345843,26.56,159.18,159.15,6.2833]
[1723175346355,6.2814,159.2,159.15,6.2833]
[1723175346559,26.56,159.18,159.15,6.2833]
[1723175348446,26.56,159.17,159.14,6.2837]
[1723175348652,26.56,159.17,159.15,45.0]
[1723175348846,26.56,159.18,159.15,45.0]
[1723175349470,26.56,159.17,159.15,45.0]
[1723175349761,26.56,159.18,159.14,45.0]
[1723175350558,26.56,159.18,159.15,6.283]
[1723175350770,26.56,159.19,159.16,45.0]
[1723175351556,26.56,159.18,159.16,45.0]
[1723175351868,26.56,159.18,159.15,45.0]
[1723175352051,26.56,159.18,159.16,6.2829]
[1723175354069,26.56,159.18,159.15,6.2833]
[1723175354273,26.56,159.18,159.16,45.0]
[1723175354440,26.56,159.18,159.16,51.2829]
[1723175354640,26.56,159.19,159.16,51.2829]
[1723175355341,26.56,159.19,159.16,45.0]
[1723175355542,26.56,159.18,159.16,45.0]
[1723175356374,8.7614,159.2,159.16,45.0]
[1723175356541,26.56,159.19,159.16,45.0]
[1723175356748,26.56,159.19,159.16,51.2829]
[1723175357460,29.04,159.2,159.16,51.2829]
[1723175357639,26.56,159.19,159.16,51.2829]
[1723175358141,29.04,159.2,159.16,51.2829]
[1723175358340,26.56,159.19,159.16,51.2829]
[1723175359145,26.56,159.19,159.16,45.0]
[1723175359760,26.56,159.18,159.16,45.0]
[1723175360663,32.8425,159.18,159.16,45.0]
[1723175360846,6.2818,159.19,159.16,45.0]
[1723175361048,26.56,159.17,159.15,45.0]
[1723175361259,26.56,159.17,159.14,45.0]
[1723175361770,26.56,159.17,159.15,6.2833]
[1723175361973,26.56,159.17,159.16,45.0]
[1723175362175,6.2836,159.15,159.12,9.43708416]
[1723175362373,26.56,159.13,159.12,9.43708416]
[1723175362551,26.56,159.13,159.1,12.5637]
[1723175362753,26.56,159.13,159.1,6.285]
[1723175362965,26.56,159.13,159.11,6.2849]
[1723175363281,26.56,159.14,159.11,6.2849]
[1723175363773,18.22,159.13,159.12,45.0]
[1723175363944,6.283,159.16,159.12,45.0]
[1723175364271,18.22,159.13,159.12,45.0]
[1723175365552,6.283,159.16,159.12,45.0]
[1723175365755,18.22,159.13,159.12,45.0]
[1723175367845,6.283,159.16,159.12,45.0]
[1723175368072,18.22,159.13,159.12,45.0]
[1723175368252,6.283,159.16,159.12,45.0]
[1723175368459,18.22,159.13,159.12,45.0]
[1723175370166,6.283,159.16,159.12,45.0]
[1723175370494,18.22,159.13,159.12,45.0]
[1723175371661,6.283,159.16,159.12,45.0]
[1723175371963,18.22,159.13,159.12,45.0]
[1723175372257,6.283,159.16,159.12,45.0]
[1723175372488,18.22,159.13,159.12,45.0]
[1723175375379,18.22,159.13,159.08,15.1018]
[1723175375685,18.22,159.09,159.05,15.7178]
[1723175375887,18.22,159.07,159.05,15.7178]
[1723175376066,18.22,159.06,159.05,15.7178]
[1723175376986,18.22,159.06,159.05,22.005]
[1723175377480,7.85694107,159.1,159.05,22.005]
[1723175377481,18.22,159.07,159.05,22.005]
[1723175377677,18.22,159.07,159.06,51.2869]
[1723175377881,6.285,159.11,159.06,51.2869]
[1723175378058,18.22,159.07,159.06,51.2869]
[1723175380980,18.22,159.07,159.06,45.0]
[1723175381165,18.22,159.07,159.04,6.2876]
[1723175381365,1.57170576,159.08,159.05,45.0]
[1723175381577,6.5637176,159.13,159.02,15.721]
[1723175381578,18.22,159.06,159.02,15.721]
[1723175381768,18.22,159.04,159.02,22.0091]
[1723175382159,18.22,159.04,159.03,6.2881]
[1723175382466,1.57170576,159.07,159.04,6.2877]
[1723175382666,18.22,159.05,159.04,6.2877]
[1723175383787,18.22,159.05,159.04,51.2877]
[1723175384368,7.85772992,159.09,159.04,51.2877]
[1723175384369,18.22,159.06,159.04,51.2877]
[1723175387775,18.22,159.06,159.04,45.0]
[1723175388775,16.2277,159.1,159.05,60.7182]
[1723175389071,18.22,159.08,159.05,60.7182]
[1723175389480,18.22,159.09,159.06,6.2866]
[1723175392987,6.2846,159.12,159.07,6.2864]
[1723175393187,6.2846,159.12,159.08,45.0]
[1723175394195,18.22,159.1,159.08,45.0]
[1723175395187,6.2857,159.09,159.08,45.0]
[1723175395392,18.22,159.09,159.02,15.7211]
[1723175395595,18.22,159.07,159.02,33.9411]
[1723175395775,18.22,159.09,159.04,18.22]
[1723175396100,18.22,159.09,159.05,6.287]
[1723175396293,15.1525,159.14,159.07,15.7155]
[1723175396597,18.22,159.11,159.07,15.7155]
[1723175396800,15.1525,159.14,159.08,45.0]
[1723175396998,18.22,159.12,159.08,45.0]
[1723175397197,18.22,159.11,159.08,45.0]
[1723175398502,18.22,159.1,159.08,45.0]
[1723175399389,18.22,159.09,159.08,45.0]
[1723175400408,18.22,159.09,159.05,6.2872]
[1723175400610,18.22,159.09,159.06,45.0]
[1723175401087,18.22,159.09,159.06,6.2869]
[1723175401884,24.5066,159.07,159.03,15.7197]
[1723175402113,18.22,159.07,159.03,22.0075]
[1723175402686,18.22,159.07,159.04,6.2877]
[1723175404215,18.22,159.07,159.05,6.2872]
[1723175404506,18.22,159.07,159.06,6.2869]
[1723175404716,18.22,159.08,159.06,6.2869]
[1723175405105,34.6054,159.07,158.99,0.8189545]
[1723175405405,18.22,159.01,158.99,0.8189545]
[1723175405805,18.22,159.0,158.99,0.8189545]
[1723175407014,6.2882,159.03,158.99,0.8189545]
[1723175407318,18.22,159.02,158.99,0.8189545]
[1723175407512,18.22,159.01,158.99,0.8189545]
[1723175410514,18.22,159.02,158.99,7.1085545]
[1723175411112,18.22,159.02,158.99,0.8189545]
[1723175414106,1.57202654,159.05,159.02,6.2881]
[1723175414423,18.22,159.06,159.03,45.0]
[1723175415797,18.22,159.05,159.03,45.0]
[1723175418113,6.2865,159.07,159.03,51.2881]
[1723175418416,18.22,159.05,159.03,51.2881]
[1723175420018,6.54835831,159.12,159.08,6.286]
[1723175420194,18.22,159.11,159.08,6.286]
[1723175420402,18.22,159.11,159.09,45.0]
[1723175421305,24.5054,159.1,159.06,15.7165]
[1723175421504,18.22,159.07,159.03,15.72]
[1723175421702,18.22,159.05,159.03,15.72]
[1723175423120,19.79189701,159.04,158.99,16.5421545]
[1723175423296,18.22,159.02,158.99,22.8314545]
[1723175423494,18.22,159.01,158.99,22.8314545]
[1723175424800,18.22,159.02,158.99,22.8314545]
[1723175425613,6.2873,159.06,159.0,6.2892]
[1723175425827,18.22,159.03,159.01,6.2889]
[1723175426308,18.22,159.02,159.0,6.2892]
[1723175426940,18.22,159.03,159.0,6.2892]
[1723175429730,18.22,159.02,159.0,6.2892]
[1723175431535,18.22,159.03,159.0,6.2892]
[1723175431839,18.22,159.03,159.01,6.2888]
[1723175433020,6.287,159.06,159.01,6.2888]
[1723175433312,18.22,159.04,159.01,6.2888]
[1723175435126,18.22,159.03,159.01,6.2888]
[1723175436020,6.287,159.06,159.01,6.2888]
[1723175436220,18.22,159.03,159.0,6.2892]
[1723175436416,18.22,159.03,158.99,22.8317545]
[1723175436734,18.22,159.03,159.0,6.2892]
[1723175438033,1.57223723,159.04,159.0,6.2892]
[1723175438228,18.22,159.04,159.0,6.2892]
[1723175438437,19.79223707,159.03,159.0,6.2892]
[1723175438817,18.22,159.03,159.0,6.2892]
[1723175439343,18.22,159.03,159.01,6.2888]
[1723175440340,18.22,159.04,159.01,6.2888]
[1723175442635,18.22,159.03,159.01,6.2888]
[1723175444139,18.22,159.04,159.01,6.2888]
[1723175444652,18.22,159.03,159.01,6.2888]
[1723175444825,6.287,159.06,159.02,45.0]
[1723175445143,18.22,159.04,159.02,45.0]
[1723175446023,18.22,159.06,159.03,6.2881]
[1723175446836,6.2862,159.08,159.03,6.2881]
[1723175447036,18.22,159.06,159.03,6.2881]
[1723175450150,18.22,159.05,159.02,45.0]
[1723175450354,18.22,159.05,159.02,51.2885]
[1723175450548,6.2864,159.08,159.03,6.2879]
[1723175450728,18.22,159.06,159.04,45.0]
[1723175451627,21.65021486,159.13,159.04,45.0]
[1723175451826,18.22,159.09,159.06,6.2868]
[1723175452125,18.22,159.09,159.07,45.0]
[1723175452536,18.22,159.08,159.06,45.0]
[1723175453252,18.22,159.07,159.06,45.0]
[1723175453447,18.22,159.07,159.05,22.0048]
[1723175453448,18.22,159.07,159.05,15.7175]
[1723175453757,18.22,159.08,159.05,22.0048]
[1723175454453,18.22,159.07,159.04,15.804]
[1723175454655,18.22,159.06,159.04,15.804]
[1723175454961,1.57178476,159.11,159.04,22.0916]
[1723175454962,18.22,159.07,159.04,22.0916]
[1723175455656,18.22,159.08,159.04,15.804]
[1723175455837,18.22,159.08,159.05,45.0]
[1723175456235,18.22,159.08,159.06,6.2869]
[1723175457659,18.22,159.09,159.07,51.2865]
[1723175457868,21.3835,159.13,159.07,6.2865]
[1723175458176,18.22,159.1,159.08,51.2861]
[1723175458348,18.22,159.1,159.08,6.2861]
[1723175459976,18.22,159.1,159.09,45.0]
[1723175460779,18.22,159.1,159.05,15.7174]
[1723175460946,18.22,159.08,159.06,45.0]
[1723175461457,18.22,159.09,159.06,51.2866]
[1723175461657,18.22,159.09,159.06,45.0]
[1723175462074,18.22,159.1,159.06,45.0]
[1723175462455,18.22,159.09,159.06,45.0]
[1723175462972,18.22,159.09,159.07,6.2864]
[1723175463547,31.97202793,159.17,159.06,45.0]
[1723175463874,18.22,159.1,159.08,6.2861]
[1723175464170,18.22,159.1,159.09,45.0]
[1723175466173,18.22,159.1,159.08,45.0]
[1723175466488,18.22,159.09,159.08,45.0]
[1723175466645,18.22,159.09,159.05,15.7174]
[1723175466854,18.22,159.08,159.06,51.2868]
[1723175467048,6.285,159.11,159.06,51.2868]
[1723175467279,18.22,159.09,159.06,51.2868]
[1723175467871,6.285,159.11,159.06,51.2868]
[1723175468084,18.22,159.07,159.05,15.7174]
[1723175468281,1.57183157,159.08,159.01,22.0106]
[1723175468577,18.22,159.04,159.01,15.7218]
[1723175468881,18.22,159.06,159.01,33.9418]
[1723175469248,18.22,159.05,159.01,15.7218]
[1723175469469,19.79186964,159.04,159.01,22.0103]
[1723175469769,18.22,159.02,159.0,16.2101]
[1723175469965,18.22,159.02,158.99,13.4197545]
[1723175470150,18.22,159.02,158.99,7.1304545]
[1723175470355,18.22,159.0,158.99,0.8189545]
[1723175471083,1.57239868,159.02,158.99,0.8189545]
[1723175471388,18.22,159.0,158.99,0.8189545]
[1723175471745,6.2886,159.02,158.99,0.8189545]
[1723175471958,18.22,159.01,158.99,0.8189545]
[1723175472141,16.0542,159.06,158.99,0.8189545]
[1723175472142,18.22,159.02,158.99,0.8189545]
[1723175472345,18.22,159.01,158.99,0.8189545]
[1723175473211,18.22,159.01,158.99,45.8189545]
[1723175473699,18.22,159.0,158.99,0.8189545]
[1723175475496,18.22,159.01,158.99,0.8189545]
[1723175475669,6.2877,159.05,158.99,0.8189545]
[1723175475873,18.22,159.01,158.99,0.8189545]
[1723175476170,18.22,159.01,158.99,52.1084545]
[1723175476371,20.08557151,159.0,158.99,52.1084545]
[1723175480993,18.22,159.07,159.04,6.2876]
[1723175481197,15.7524,159.09,159.04,6.2876]
[1723175481397,18.22,159.06,159.02,22.0085]
[1723175481611,18.22,159.05,158.99,85.8623545]
[1723175482188,18.22,159.05,159.01,6.2887]
[1723175483395,18.22,159.05,159.02,6.2884]
[1723175485397,18.22,159.04,159.02,6.2884]
[1723175485996,6.2865,159.07,159.02,6.2884]
[1723175486310,18.22,159.05,159.02,6.2884]
[1723175489822,18.22,159.04,159.02,6.2884]
[1723175490017,22.0384,159.09,159.02,6.2884]
[1723175490195,18.22,159.06,159.03,6.2878]
[1723175490519,18.22,159.05,159.03,6.2878]
[1723175491226,18.22,159.05,159.02,6.2884]
[1723175491438,18.22,159.04,159.02,6.2884]
[1723175492325,18.22,159.04,159.01,15.7222]
[1723175492702,18.22,159.03,159.01,15.7222]
[1723175493310,18.22,159.03,159.01,22.0109]
[1723175493704,18.22,159.04,159.02,6.2885]
[1723175495006,18.22,159.05,159.02,6.2885]
[1723175496013,18.22,159.04,159.02,6.2885]
[1723175496710,18.22,159.05,159.03,6.2879]
[1723175497141,18.22,159.05,159.02,6.2884]
[1723175497529,18.22,159.05,159.03,6.288]
[1723175498616,18.22,159.05,158.99,67.6423545]
[1723175498617,6.55942834,159.09,159.04,15.7188]
[1723175498816,18.22,159.07,159.04,22.0063]
[1723175499540,18.22,159.07,159.04,15.7188]
[1723175501042,18.22,159.07,159.04,22.0061]
[1723175502154,6.285,159.11,159.06,6.2869]
[1723175502331,18.22,159.1,159.06,15.7164]
[1723175502643,18.22,159.1,159.07,6.2864]
[1723175502856,21.8573,159.13,159.06,15.7164]
[1723175502857,18.22,159.11,159.08,6.2861]
[1723175504465,16.3525,159.17,159.08,15.7143]
[1723175504682,6.2835,159.15,159.09,51.2855]
[1723175504957,16.3525,159.17,159.11,15.7123]
[1723175505263,18.22,159.15,159.13,6.2841]
[1723175505927,18.22,159.15,159.12,45.0]
[1723175505928,18.22,159.15,159.12,51.2845]
[1723175506450,8.7617,159.2,159.14,6.2837]
[1723175506762,18.22,159.17,159.14,6.2837]
[1723175507059,8.7617,159.2,159.12,63.22]
[1723175507060,6.2818,159.19,159.13,6.2838]
[1723175507259,6.2818,159.19,159.12,63.22]
[1723175507260,18.22,159.17,159.14,6.2836]
[1723175508060,8.7614,159.2,159.14,6.2836]
[1723175508362,18.22,159.18,159.14,6.2836]
[1723175508529,2.48,159.2,159.15,18.22]
[1723175508734,2.48,159.2,159.16,45.0]
[1723175508963,20.7,159.2,159.16,51.2829]
[1723175509349,20.7,159.2,159.17,6.2824]
[1723175512549,18.22,159.19,159.17,6.2824]
[1723175512867,20.7,159.2,159.17,6.2824]
[1723175514102,18.22,159.18,159.16,51.2829]
[1723175514753,18.22,159.18,159.17,6.2825]
[1723175514960,18.22,159.19,159.17,6.2825]
[1723175515546,18.22,159.18,159.14,15.7087]
[1723175515745,18.22,159.15,159.13,6.2841]
[1723175516563,18.22,159.15,159.11,6.3149]
[1723175516875,18.22,159.15,159.13,6.2841]
[1723175517083,6.2848,159.12,159.06,22.0031]
[1723175517249,18.22,159.14,159.07,6.2865]
[1723175517250,18.22,159.09,159.07,6.2865]
[1723175517447,1.57137592,159.11,159.06,15.7166]
[1723175517448,18.22,159.1,159.06,15.7166]
[1723175518185,18.22,159.09,159.07,6.2863]
[1723175518563,18.22,159.09,159.08,6.2861]
[1723175518763,18.22,159.1,159.08,6.2861]
[1723175518981,18.22,159.1,159.09,6.2857]
[1723175519157,18.22,159.11,159.09,6.2857]
[1723175519362,18.22,159.12,159.09,15.7141]
[1723175520057,18.22,159.13,159.09,15.7141]
[1723175520257,18.22,159.13,159.1,6.2853]
[1723175520762,18.22,159.12,159.1,6.2853]
[1723175521483,16.0155,159.17,159.12,15.7113]
[1723175521694,18.22,159.16,159.15,6.2833]
[1723175521863,18.22,159.16,159.13,6.2837]
[1723175522064,18.22,159.14,159.12,21.9958]
[1723175522465,18.22,159.15,159.13,6.2841]
[1723175522857,18.22,159.15,159.14,6.2837]
[1723175523061,18.22,159.16,159.14,6.2837]
[1723175523282,18.22,159.17,159.15,6.2832]
[1723175524385,2.48,159.2,159.16,6.2829]
[1723175524697,18.22,159.18,159.16,6.2829]
[1723175524856,18.22,159.19,159.17,6.2824]
[1723175525052,20.7,159.2,159.17,6.2824]
[1723175526254,20.7,159.2,159.15,18.22]
[1723175526460,20.7,159.2,159.16,45.0]
[1723175526679,20.7,159.2,159.18,6.2821]
[1723175526863,2.48,159.2,159.18,6.2821]
[1723175527585,2.48,159.2,159.19,6.2818]
[1723175528095,2.48,159.2,159.19,66.9863]
[1723175528260,2.48,159.2,159.19,85.2063]
[1723175528983,2.48,159.2,159.19,107.4291]
[1723175530365,36.23625467,159.3,159.24,15.6993]
[1723175530677,36.23625467,159.3,159.27,6.2785]
[1723175531184,18.01625467,159.3,159.27,33.9164]
[1723175531390,18.22,159.33,159.31,6.277]
[1723175531684,28.07922202,159.36,159.31,6.277]
[1723175531981,32.46827288,159.4,159.3,15.6931]
[1723175531982,1.56907659,159.38,159.3,15.6931]
[1723175532162,6.2751,159.36,159.31,45.0]
[1723175532483,34.35448176,159.35,159.3,21.9703]
[1723175532665,26.51,159.35,159.31,6.277]
[1723175534293,26.51,159.33,159.26,15.6968]
[1723175534470,26.51,159.31,159.26,15.6968]
[1723175534660,1.56962365,159.3,159.26,15.6968]
[1723175534858,1.56962195,159.29,159.26,15.6968]
[1723175535481,26.51,159.31,159.26,15.6968]
[1723175535691,26.51,159.31,159.28,6.2782]
[1723175536966,26.51,159.29,159.23,6.2799]
[1723175537166,26.51,159.25,159.22,15.7007]
[1723175537372,26.51,159.23,159.2,6.2813]
[1723175537769,26.51,159.23,159.21,6.2808]
[1723175537965,26.51,159.23,159.18,15.7047]
[1723175538171,26.51,159.23,159.2,6.2812]
[1723175538390,26.51,159.23,159.19,6.2817]
[1723175538562,26.51,159.23,159.2,6.2813]
[1723175539197,26.51,159.23,159.19,6.2817]
[1723175539705,26.51,159.23,159.2,6.2813]
[1723175539865,26.51,159.23,159.21,6.2809]
[1723175540067,26.51,159.25,159.19,6.2814]
[1723175540406,26.51,159.23,159.18,15.7047]
[1723175540595,26.51,159.21,159.16,6.2829]
[1723175540791,15.1941,159.24,159.14,15.7086]
[1723175540792,32.7919,159.19,159.14,15.7086]
[1723175541109,26.51,159.17,159.12,6.0761]
[1723175541314,1.57085403,159.16,159.12,12.3602]
[1723175541478,15.1941,159.24,159.12,38.75421153]
[1723175541679,26.51,159.2,159.17,6.2824]
[1723175541879,26.51,159.2,159.16,15.7072]
[1723175542075,26.51,159.22,159.16,15.7072]
[1723175542280,26.51,159.22,159.19,6.2818]
[1723175543386,26.51,159.24,159.21,6.2809]
[1723175544127,26.51,159.24,159.2,6.2813]
[1723175544310,26.51,159.24,159.21,45.0]
[1723175545413,26.51,159.24,159.2,6.2813]
[1723175545414,26.51,159.24,159.19,15.7044]
[1723175545710,26.51,159.24,159.2,45.0]
[1723175546007,26.51,159.26,159.22,6.2805]
[1723175546210,26.51,159.26,159.23,45.0]
[1723175546513,26.51,159.26,159.21,6.2809]
[1723175546715,26.51,159.24,159.19,21.9858]
[1723175546884,26.51,159.24,159.2,51.281]
[1723175547084,26.51,159.24,159.2,45.0]
[1723175547285,23.22241174,159.29,159.22,15.7015]
[1723175547486,26.51,159.27,159.23,51.2801]
[1723175547906,26.51,159.27,159.22,15.7015]
[1723175548113,1.57011023,159.26,159.22,15.7015]
[1723175548388,7.84921023,159.26,159.21,6.2809]
[1723175548696,26.51,159.25,159.18,15.7047]
[1723175548897,26.51,159.28,159.19,45.0]
[1723175548898,26.51,159.23,159.19,45.0]
[1723175549209,26.51,159.25,159.21,6.2809]
[1723175549416,26.51,159.25,159.22,6.2806]
[1723175549607,26.51,159.25,159.19,45.0]
[1723175549813,6.2798,159.24,159.19,6.2814]
[1723175550110,6.2798,159.24,159.18,21.9868]
[1723175550298,26.51,159.21,159.15,21.3287]
[1723175550625,26.51,159.28,159.14,21.992]
[1723175550626,26.51,159.17,159.14,21.992]
[1723175551415,26.51,159.19,159.17,6.2824]
[1723175551713,26.51,159.21,159.18,6.282]
[1723175552022,26.51,159.21,159.18,51.282]
[1723175552326,26.51,159.21,159.18,45.0]
[1723175554428,26.51,159.19,159.13,15.7095]
[1723175554593,26.51,159.17,159.13,21.9936]
[1723175554904,6.2814,159.2,159.13,15.7095]
[1723175555106,26.51,159.19,159.16,15.7073]
[1723175555308,26.51,159.21,159.17,6.2824]
[1723175555808,32.791,159.21,159.18,45.0]
[1723175556017,32.791,159.21,159.17,45.0]
[1723175557528,6.281,159.21,159.17,45.0]
[1723175558019,26.51,159.2,159.17,45.0]
[1723175563802,32.7917,159.2,159.17,45.0]
[1723175564008,32.7917,159.2,159.16,45.0]
[1723175564227,32.7917,159.2,159.15,51.2833]
[1723175564939,16.4893,159.22,159.16,6.2829]
[1723175565120,26.51,159.21,159.17,45.0]
[1723175566018,32.791,159.21,159.17,45.0]
[1723175566417,26.51,159.19,159.17,45.0]
[1723175566620,32.7921,159.19,159.17,45.0]
[1723175566824,26.51,159.19,159.17,45.0]
[1723175567224,26.51,159.19,159.14,6.2834]
[1723175567410,1.57074734,159.18,159.14,6.2834]
[1723175567612,1.57074734,159.18,159.15,45.0]
[1723175567925,26.51,159.19,159.15,51.2833]
[1723175568128,26.51,159.19,159.16,6.2828]
[1723175568509,26.51,159.19,159.17,45.0]